[Event "CZE-ch U16 Open 2023"]
[Site "Teplice"]
[Date "2023.03.18"]
[Round "9.10"]
[White "Mohapl, Tomas"]
[Black "Zezula, Jakub"]
[Result "1/2-1/2"]
[ECO "C78"]
[WhiteElo "1946"]
[BlackElo "1963"]
[Annotator "TA"]
[PlyCount "73"]
[EventDate "2023.03.09"]
[EventType "swiss"]
[EventCountry "CZE"]
[SourceTitle "playchess.com"]
[Source "ChessBase"]
[SourceQuality "1"]
[TimeControl "40/5400+30:1800+30"]

{[%evp 19,73,0,0,0,0,0,30,9,14,20,18,0,0,-24,-18,-43,-22,-23,-13,-19,0,-15,6,8,18,23,22,15,30,26,14,30,28,4,30,18,22,0,25,20,17,0,0,0,0,0,0,-11,-12,-11,0,0,0,-16,-10,-16]} 1. e4 {[%emt 0:00:02]} e5 {[%emt 0:00:07]} 2. Nf3 {[%emt 0:00:27]} Nc6 {[%emt 0:00:05]} 3. Bb5 {[%emt 0:00:04]} a6 {[%emt 0:00:05]} 4. Ba4 {[%emt 0:00:04]} Nf6 {[%emt 0:00:12]} 5. O-O {[%emt 0:00:34]} b5 {[%emt 0:00:11]} 6. Bb3 {[%emt 0:00:06]} Bc5 {[%emt 0:00:08]} 7. c3 {[%emt 0:04:45]} d6 {[%emt 0:00:13]} 8. d4 {[%emt 0:01:15]} Bb6 {[%emt 0:00:27]} 9. h3 {[%emt 0:14:01]} Bb7 {[%emt 0:01:03]} 10. Re1 {[%emt 0:05:42]} O-O {[%emt 0:02:53]} 11. Bg5 {[%emt 0:01:13] C78: Ruy Lopez: Archangelsk and Möller Defences.} h6 {[%emt 0:00:54]} 12. Bh4 {[%emt 0:01:32]} Re8 {[%emt 0:05:44]} 13. d5 {[%emt 0:14:00] White has an edge.} Nb8 {[%emt 0:00:40][%cal Bc6b8,Bb8d7,Bd7f8,Bf8g6][%mdl 32]} 14. Nbd2 {[%emt 0:01:54][%cal Bb1d2,Bd2f1,Bf1g3,Bg3h5][%mdl 32]} Nbd7 {[%emt 0:03:33]} 15. Nf1 {[%emt 0:01:12]} Nf8 {[%emt 0:02:56] [#]} 16. Bxf6 $146 {[%emt 0:03:41]} ({Predecessor:} 16. N3d2 g5 17. Bg3 Ng6 18. Ne3 Kh7 19. Nf5 Rg8 20. Bc2 Ne7 21. Ne3 Qd7 22. Ndf1 {1-0 Hu,Y (1995)-Meng,W (1472) CHN-chB (Women) 2019 (1)}) 16... Qxf6 {[%emt 0:00:17]} 17. Ng3 {[%emt 0:00:15]} Ng6 {[%emt 0:02:22]} 18. Nh5 {[%emt 0:04:08] Prevents Nf4} Qe7 {[%emt 0:05:06]} 19. a4 {[%emt 0:04:35]} c6 {[%emt 0:13:03]} 20. Qd3 {[%emt 0:05:43]} Nh4 {[%emt 0:11:01]} (20... Bc5 {is more complex.} 21. axb5 axb5 22. dxc6 Bxc6 23. Rxa8 Rxa8 24. Bd5 Qb7) 21. dxc6 {[%emt 0:09:43]} Bxc6 {[%emt 0:02:07]} (21... Nxf3+ {simplifies} 22. Qxf3 Bxc6 23. Ng3 g6) 22. Nxh4 {[%emt 0:04:28]} Qxh4 {[%emt 0:05:55]} 23. Ng3 {[%emt 0:01:01]} bxa4 {[%emt 0:07:31]} 24. Bxa4 {[%emt 0:02:55]} Bxa4 {[%emt 0:01:32]} 25. Rxa4 {[%emt 0:00:07]} d5 {[%emt 0:03:31]} 26. b3 {[%emt 0:01:56]} dxe4 {[%emt 0:03:35]} 27. Raxe4 {[%emt 0:02:40]} Qf6 {[%emt 0:00:49]} 28. Qe2 {[%emt 0:06:05][%cal Og3h5]} a5 {[%emt 0:05:57]} 29. Nh5 {[%emt 0:01:47]} Qd6 {[%emt 0:12:30] The position is equal.} 30. Rxe5 {[%emt 0:01:36]} (30. Qf3 {looks sharper.} Ra7 31. Rg4 f5 32. Qxf5 Rf8 33. Qxe5 Bxf2+ 34. Kh2) 30... Rxe5 {[%emt 0:00:18]} 31. Qxe5 {[%emt 0:00:05]} Qxe5 {[%emt 0:01:58]} 32. Rxe5 $11 {[%emt 0:00:05] KRB-KRN} Rd8 {[%emt 0:00:08] [#] Threatens to win with ...Rd1+.} 33. Re2 {[%emt 0:07:33]} Rd1+ {[%emt 0:01:17][%mdl 1024] Black has compensation.} 34. Kh2 {[%emt 0:00:02]} Rd3 {[%emt 0:01:12]} 35. Rc2 {[%emt 0:00:42]} ({Don't play} 35. Re8+ Kh7 36. b4 a4 $15) 35... Bc7+ {[%emt 0:00:54]} 36. Ng3 {[%emt 0:00:51]} Be5 {[%emt 0:01:28]} 37. b4 {[%emt 0:00:22] An interesting draw.   Weighted Error Value: White=0.09 (flawless) /Black=0.09 (flawless)} 1/2-1/2

[Event "CZE-ch U16 Open 2023"]
[Site "Teplice"]
[Date "2023.03.18"]
[Round "9.11"]
[White "Kubin, Tomas Daniel"]
[Black "Sigut, Ondrej"]
[Result "1/2-1/2"]
[ECO "B07"]
[WhiteElo "1936"]
[BlackElo "1804"]
[Annotator "TA"]
[PlyCount "105"]
[EventDate "2023.03.09"]
[EventType "swiss"]
[EventCountry "CZE"]
[SourceTitle "playchess.com"]
[Source "ChessBase"]
[SourceQuality "1"]
[TimeControl "40/5400+30:1800+30"]

{[%evp 20,105,81,51,61,47,70,39,64,70,70,59,148,30,145,29,31,29,34,31,55,43,52,53,73,54,41,19,19,20,22,21,22,-125,140,-8,0,0,10,10,10,10,10,10,10,10,9,6,6,0,0,0,0,0,0,0,0,-8,0,0,0,-34,0,-8,0,0,0,-8,0,-8,0,-8,-8,-17,0,0,0,0,0,0,0,-8,0,-7,-7,-6,0,-4]} 1. e4 {[%emt 0:00:04]} d6 {[%emt 0:00:03]} 2. d4 {[%emt 0:00:33]} Nf6 {[%emt 0:00:09]} 3. Nc3 {[%emt 0:01:35]} e5 {[%emt 0:00:10]} 4. Nf3 {[%emt 0:06:22]} exd4 {[%emt 0:00:17]} 5. Nxd4 {[%emt 0:00:20]} g6 {[%emt 0:00:10]} 6. f3 {[%emt 0:04:32]} Bg7 {[%emt 0:00:31]} 7. Be3 {[%emt 0:01:32]} O-O {[%emt 0:00:38]} 8. Qd2 {[%emt 0:00:47]} Nc6 {[%emt 0:00:23]} 9. O-O-O {[%emt 0:00:41]} Nxd4 {[%emt 0:00:40]} 10. Bxd4 {[%emt 0:00:42]} Be6 {[%emt 0:00:58]} 11. Be3 {[%emt 0:03:56]} a6 {[%emt 0:01:52] C41: Philidor Defence.} 12. Bh6 {[%emt 0:07:54]} b5 {[%emt 0:01:28] [#]} 13. Kb1 $146 {[%emt 0:01:59]} ({Predecessor:} 13. h4 Nh5 14. g4 Ng3 15. Rh3 Nxf1 16. Rxf1 f6 17. h5 g5 18. Bxg7 Kxg7 19. Rd1 {½-½ Danada,O (1895)-Janos,J (2215) Bratislava Doprastav op 2010 (5)}) 13... b4 {[%emt 0:04:24] White is slightly better.} 14. Ne2 {[%emt 0:01:42]} a5 {[%emt 0:08:13]} 15. h4 {[%emt 0:07:41][%cal Oh4h5]} a4 {[%emt 0:12:36]} (15... Bxh6 $14 16. Qxh6 Nd7) 16. g4 {[%emt 0:08:35]} ({White should play} 16. Bxg7 $16 Kxg7 17. Qxb4) 16... Qe7 {[%emt 0:17:37]} (16... Bxh6 $11 {remains equal.} 17. Qxh6 b3) 17. h5 {[%emt 0:05:21]} ({Only move:} 17. Bxg7 $16 Kxg7 18. Qxb4) 17... Bxa2+ $11 {[%emt 0:12:04][%mdl 64] Decoy} 18. Kxa2 {[%emt 0:12:58] And now Bxg7 would win.} b3+ {[%emt 0:00:44]} 19. Kb1 {[%emt 0:08:08]} (19. cxb3 $2 Nxe4 20. Qd3 (20. fxe4 $2 axb3+ 21. Kxb3 Rfb8+ {[%mdl 64] Skewer} 22. Kc4 Qxe4+ $19) 20... Nf2 $19) 19... bxc2+ {[%emt 0:03:03]} 20. Qxc2 {[%emt 0:03:07]} Bxh6 {[%emt 0:04:54]} 21. hxg6 {[%emt 0:00:23][%mdl 64] Discovered Attack} (21. Nd4 $5 {[%cal Rh5g6]} Bf4 22. hxg6 hxg6 23. Bc4 $11) 21... Bg7 $1 {[%emt 0:01:19] Hoping for ...a3.} 22. gxf7+ {[%emt 0:02:22]} (22. g5 hxg6 23. gxf6 Qxf6 $17) (22. Nd4 {is interesting.} fxg6 23. Nc6 Qe8 24. e5) 22... Rxf7 {[%emt 0:03:37]} 23. Nd4 {[%emt 0:02:27]} (23. Ng3 {is more complex.} a3 24. Nf5 Qe5 25. Bc4) 23... a3 $1 {[%emt 0:06:49] Black is weak on the light squares} 24. Nc6 {[%emt 0:06:56]} (24. Bc4 d5 25. Nf5 (25. Bxd5 Nxd5 26. exd5 h6 $17) (25. exd5 axb2 26. Qd3 Qe5 $14) 25... Qe5 26. Bxd5 (26. exd5 axb2 27. Qd3 Ra1+ 28. Kc2 Kh8 $14) 26... Nxd5 27. Rxd5 Qxb2+ 28. Qxb2 axb2) (24. Bc4 {feels hotter.} axb2 25. Nc6 Qe8 26. e5) 24... Qe8 {[%emt 0:03:16] [#]} 25. e5 $1 {[%emt 0:02:24]} axb2 $1 {[%emt 0:01:57]} 26. Kxb2 {[%emt 0:04:24] [#]} (26. exf6 $2 Bxf6 $19) (26. Bc4 $11 {keeps the balance.} Kf8 27. Nd4 (27. Bxf7 Qxf7 28. Qxb2 Nd7 $11)) 26... Bh8 $2 {[%emt 0:05:49][%mdl 8192]} 27. g5 {[%emt 0:00:53] White has more active pieces.} (27. exf6 Bxf6+ 28. Kb3 (28. Kc1 Qe3+ 29. Qd2 Ra1+ 30. Kc2 Ra2+ 31. Kc1 Qa3+ 32. Kb1 Qb3+ 33. Kc1 Ra1#) 28... Qe3+ 29. Bd3 Qb6+ 30. Nb4 c5 31. Bxh7+ Kf8 $17) (27. Bc4 $1 $16 {[%cal Og4g5] Strongly threatening g5!} d5 28. Bxd5 Nxd5 29. Rxd5) 27... Nd7 {[%emt 0:03:02]} (27... Qe6 $2 28. Bc4 (28. gxf6 $2 Ra2+ 29. Kc3 Rxc2+ 30. Kxc2 Qa2+ 31. Kc1 Qa1+ 32. Kd2 Qb2+ 33. Ke3 Qb6+ 34. Kd2 Qxc6 $19) 28... d5 29. Bb3 $18 (29. gxf6 dxc4 30. Qe4 Bxf6 $18)) (27... Ng4 $5 28. Bc4 $8 (28. fxg4 $2 Bxe5+ 29. Kb3 Rf3+ 30. Rd3 Qe6+ 31. Qc4 Ra3+ {[%mdl 64] Deflection} 32. Kxa3 Qxc4 $19) 28... Bxe5+ 29. Rd4 (29. Kc1 $2 Kf8 $19) 29... Bxd4+ 30. Nxd4 Kh8 31. fxg4 Rb8+ 32. Nb3 Qe5+ 33. Kc1 Qxg5+ 34. Nd2 Re7 $15) 28. Bc4 $1 {[%emt 0:00:50][%csl LRf7,LRh7]} Bxe5+ {[%emt 0:01:40]} 29. Nxe5 {[%emt 0:01:27]} ({Don't go for} 29. Kc1 $2 Ra1+ 30. Kd2 Bf4+ 31. Kc3 Qe3+ 32. Bd3 Be5+ 33. Nxe5 Qxe5+ 34. Kd2 Qf4+ 35. Ke1 Qxf3 $19) 29... Qxe5+ {[%emt 0:00:23]} 30. Qc3 {[%emt 0:00:26] Dancing on a razor blade.} Qxc3+ {[%emt 0:01:09][%mdl 64] Remove Defender} ({Much less strong is} 30... Rb8+ 31. Kc2 Qf5+ 32. Bd3 $16 (32. Qd3 Kh8 $16)) 31. Kxc3 {[%emt 0:00:04]} Ra3+ {[%emt 0:00:26]} 32. Kb4 {[%emt 0:01:03]} Raxf3 {[%emt 0:00:19]} 33. Bxf7+ {[%emt 0:00:56]} Rxf7 {[%emt 0:00:04][%mdl 4096] Endgame KRR-KRN} 34. Rd5 {[%emt 0:02:08]} Ne5 {[%emt 0:01:34]} 35. Rc1 {[%emt 0:00:57]} Kg7 {[%emt 0:01:17]} 36. Rg1 {[%emt 0:01:21]} Kg6 {[%emt 0:00:34]} 37. Rdd1 {[%emt 0:00:55]} Rf5 {[%emt 0:01:11]} 38. Kb3 {[%emt 0:00:28]} Nf3 {[%emt 0:01:22]} 39. Rg2 {[%emt 0:00:23]} Nxg5 {[%emt 0:00:18]} 40. Rc2 {[%emt 0:00:09]} Rf7 {[%emt 0:00:32]} 41. Rdc1 {[%emt 0:30:24] The position is equal.} c5 {[%emt 0:30:57]} 42. Rd1 {[%emt 0:00:34]} Rf6 {[%emt 0:00:19]} 43. Rcd2 {[%emt 0:00:00]} Ne4 {[%emt 0:00:00]} 44. Re2 {[%emt 0:00:00]} Re6 {[%emt 0:00:00]} 45. Rd5 {[%emt 0:00:00]} Kf7 {[%emt 0:00:00]} 46. Rh2 {[%emt 0:00:00]} h6 {[%emt 0:00:00]} 47. Rdh5 {[%emt 0:00:00]} Kg7 {[%emt 0:00:00]} 48. Kc4 {[%emt 0:00:00]} Rg6 {[%emt 0:00:00]} 49. R5h4 {[%emt 0:00:00]} Nf6 {[%emt 0:00:00]} 50. Ra2 {[%emt 0:00:00]} Ng4 {[%emt 0:00:00]} 51. Rh5 {[%emt 0:00:00]} Ne3+ {[%emt 0:00:00]} 52. Kd3 {[%emt 0:00:00]} Ng4 {[%emt 0:00:00]} 53. Ke4 {An interesting game.   Weighted Error Value: White=0.25 (precise) /Black=0.22 (precise)} 1/2-1/2